fUST/lending_fUST_20251217
["ID","MTS","AMOUNT","RATE_DAILY","PERIOD"]
[398852553,1765920698611,273.27,8.118e-05,2]
[398852554,1765920699091,327.92,8.443e-05,2]
[398852555,1765920699477,382.57,8.768e-05,2]
[398852556,1765920699887,437.22,9.092e-05,2]
[398852557,1765920700357,491.88,9.417e-05,2]
[398852558,1765920704278,154.128,9.624e-05,2]
[398852563,1765920767801,150.0,7.328e-05,2]
[398852564,1765920768200,150.0,7.677e-05,2]
[398852565,1765920768653,150.0,8.026e-05,2]
[398852566,1765920769044,186.57,8.375e-05,2]
[398852568,1765920769474,233.22,8.724e-05,2]
[398852569,1765920769877,279.86,9.073e-05,2]
[398852570,1765920770273,326.51,9.422e-05,2]
[398852605,1765920837845,150.0,7.294e-05,2]
[398852606,1765920838262,150.0,7.641e-05,2]
[398852607,1765920838665,150.0,7.988e-05,2]
[398852608,1765920839075,180.77,8.336e-05,2]
[398852609,1765920840065,225.96,8.683e-05,2]
[398852610,1765920840520,271.15,9.03e-05,2]
[398852611,1765920840915,316.34,9.377e-05,2]
[398852612,1765920909481,150.0,7.296e-05,2]
[398852613,1765920910055,150.0,7.643e-05,2]
[398852614,1765920910473,150.0,7.99e-05,2]
[398852615,1765920910875,150.0,8.338e-05,2]
[398852616,1765920911270,186.06,8.685e-05,2]
[398852617,1765920911668,223.27,9.033e-05,2]
[398852618,1765920912067,260.49,9.38e-05,2]
[398852619,1765920982514,150.0,6.732e-05,2]
[398852621,1765920982934,150.0,7.053e-05,2]
[398852622,1765920983344,150.0,7.373e-05,2]
[398852623,1765920983755,150.0,7.694e-05,2]
[398852624,1765920984253,150.0,8.014e-05,2]
[398852625,1765920984655,150.0,8.335e-05,2]
[398852626,1765920985050,150.0,8.656e-05,2]
[398852628,1765920986035,168.41,8.976e-05,2]
[398852629,1765920986129,189.46,9.297e-05,2]
[398852630,1765920986280,210.51,9.617e-05,2]
[398852671,1765921074116,605.38483015,9.64e-05,2]
[398852672,1765921079550,286.38,8.432e-05,2]
[398852673,1765921079800,286.38,8.432e-05,2]
[398852674,1765921080088,54.93788752,8.432e-05,2]
[398852675,1765921080115,231.44211248,8.432e-05,2]
[398852865,1765921523313,800.0,9.633e-05,2]
[398852866,1765921523417,800.0,9.632e-05,2]
[398852883,1765921546711,5000.0,9.64e-05,2]
[398852889,1765921563443,150.0,6.861e-05,2]
[398852890,1765921563849,150.0,7.188e-05,2]
[398852892,1765921564249,150.0,7.515e-05,2]
[398852893,1765921564969,150.0,7.841e-05,2]
[398852894,1765921565062,150.0,8.168e-05,2]
[398852895,1765921570081,2418.56788752,9.64e-05,2]
[398852896,1765921570110,2581.43211248,9.64e-05,2]
[398852908,1765921593036,2100.0,9.64e-05,2]
[398852913,1765921607954,462.10534614,9.565e-05,2]
[398852918,1765921616122,1153.46774241,9.64e-05,2]
[398852926,1765921629540,150.0,6.846e-05,2]
[398852928,1765921630416,150.0,7.172e-05,2]
[398852929,1765921630846,150.0,7.498e-05,2]
[398852930,1765921631278,150.0,7.824e-05,2]
[398852931,1765921631674,181.72,8.15e-05,2]
[398852933,1765921632107,218.06,8.476e-05,2]
[398852934,1765921632526,254.4,8.802e-05,2]
[398852935,1765921632997,290.75,9.128e-05,2]
[398852936,1765921633334,327.09,9.454e-05,2]
[398852941,1765921641127,-304.05441903,9.67e-05,2]
[398852942,1765921641147,-158.05092711,9.672e-05,2]
[398852971,1765921702096,150.0,6.85e-05,2]
[398852972,1765921702618,150.0,7.176e-05,2]
[398852973,1765921703015,150.0,7.502e-05,2]
[398852974,1765921703440,150.0,7.828e-05,2]
[398852975,1765921703850,150.0,8.154e-05,2]
[398852976,1765921704254,150.0,8.481e-05,2]
[398853080,1765921832383,-641.94907289,9.672e-05,2]
[398853081,1765921832393,-998.70168781,9.719e-05,2]
[398853083,1765921832403,-300.0,9.719e-05,2]
[398853084,1765921832412,-300.0,9.719e-05,2]
[398853085,1765921832425,-168.0,9.719e-05,2]
[398853086,1765921832434,-335.51998378,9.719e-05,2]
[398853087,1765921832443,-75671.34972114,9.72e-05,2]
[398853112,1765921838380,-927.77413823,9.72e-05,2]
[398853115,1765921838393,-955.22253843,9.72e-05,2]
[398853117,1765921838406,-1020.48504317,9.72e-05,2]
[398853119,1765921838416,-2329.95344942,9.72e-05,2]
[398853121,1765921838429,-557.69832396,9.72e-05,2]
[398853123,1765921838439,-356.87099803,9.72e-05,2]
[398853127,1765921838459,-1920.14731643,9.72e-05,2]
[398853129,1765921838471,-1517.68091614,9.72e-05,2]
[398853131,1765921838481,-418.70525394,9.72e-05,2]
[398853134,1765921838497,-832.12920319,9.72e-05,2]
[398853136,1765921838512,-2694.248208,9.72e-05,2]
[398853138,1765921838523,-3632.46893236,9.72e-05,2]
[398853141,1765921838535,-4717.75764161,9.72e-05,2]
[398853313,1765921840526,-1757.62581845,9.72e-05,2]
[398853318,1765921840583,-18376.8,9.72e-05,2]
[398853320,1765921840594,-11291.44,9.72e-05,2]
[398853322,1765921840606,-2109.60784002,9.72e-05,2]
[398853324,1765921840618,-484.71806252,9.72e-05,2]
[398853326,1765921840628,-29068.36065008,9.72e-05,2]
[398853636,1765921843584,-1147.5,9.72e-05,2]
[398853643,1765921843641,-451.24,9.72e-05,2]
[398853645,1765921843652,-3042.04970034,9.72e-05,2]
[398853836,1765921846540,-306.72417695,9.72e-05,2]
[398853837,1765921846607,-677.29003737,9.72e-05,2]
[398853838,1765921846665,-21426.65348868,9.72e-05,2]
[398853839,1765921846676,-1676.66982004,9.72e-05,2]
[398854007,1765922183303,800.0,9.5e-05,2]
[398854008,1765922201944,130.98479897,9.64e-05,2]
[398854009,1765922201971,4869.01520103,9.64e-05,2]
[398854010,1765922218161,150.0,7.093e-05,2]
[398854011,1765922219019,150.0,7.431e-05,2]
[398854012,1765922219434,150.0,7.768e-05,2]
[398854013,1765922219858,150.0,8.106e-05,2]
[398854014,1765922220265,165.41,8.444e-05,2]
[398854015,1765922220683,198.49,8.782e-05,2]
[398854016,1765922221128,231.57,9.119e-05,2]
[398854017,1765922221541,264.65,9.457e-05,2]
[398854018,1765922223142,150.0,0.00013695,30]
[398854019,1765922226161,2484.27,9.64e-05,2]
[398854031,1765922250234,238.6001667,8.734e-05,2]
[398854050,1765922289770,150.0,7.078e-05,2]
[398854051,1765922290175,150.0,7.415e-05,2]
[398854052,1765922290577,150.0,7.752e-05,2]
[398854053,1765922290988,150.0,8.089e-05,2]
[398854054,1765922291393,150.0,8.426e-05,2]
[398854056,1765922291789,150.0,8.763e-05,2]
[398854058,1765922295578,48.00463227,9.597e-05,2]
[398854059,1765922295604,2495.01333809,9.597e-05,2]
[398854113,1765922439829,7504.99666191,9.62e-05,2]
[398854114,1765922439860,10000.01,9.62e-05,2]
[398854115,1765922439889,10000.01,9.62e-05,2]
[398854116,1765922439919,10000.01,9.62e-05,2]
[398854117,1765922439947,10000.01,9.62e-05,2]
[398854118,1765922439977,10000.01,9.62e-05,2]
[398854119,1765922440007,10000.01,9.62e-05,2]
[398854120,1765922440037,10000.01,9.62e-05,2]
[398854121,1765922440068,10000.01,9.62e-05,2]
[398854122,1765922440100,10000.01,9.62e-05,2]
[398854123,1765922440135,785011.55655986,9.62e-05,2]
[398854124,1765922444872,5000.0,9.64e-05,2]
[398854134,1765922452730,5000.0,9.64e-05,2]
[398854139,1765922475880,5000.0,9.64e-05,2]
[398854140,1765922484447,0.01,7.081e-05,2]
[398854141,1765922484476,187.55,7.081e-05,2]
[398854142,1765922484887,375.11,7.419e-05,2]
[398854143,1765922485807,562.67,7.756e-05,2]
[398854144,1765922485872,750.23,8.093e-05,2]
[398854145,1765922486130,937.79,8.43e-05,2]
[398854146,1765922486544,1125.34,8.768e-05,2]
[398854147,1765922486956,1312.9,9.105e-05,2]
[398854148,1765922487379,1500.46,9.442e-05,2]
[398854151,1765922498753,3247.96,9.64e-05,2]
[398854152,1765922498780,1752.04,9.64e-05,2]
[398854153,1765922521606,4412.61217633,9.64e-05,2]
[398854157,1765922561322,209.86,7.078e-05,2]
[398854159,1765922561739,419.72,7.415e-05,2]
[398854160,1765922562152,629.58,7.752e-05,2]
[398854161,1765922562557,839.43,8.089e-05,2]
[398854162,1765922562971,1049.29,8.426e-05,2]
[398854163,1765922563369,687.47782367,8.763e-05,2]
[398854164,1765922563396,571.67217633,8.763e-05,2]
[398854165,1765922563774,1469.01,9.1e-05,2]
[398854166,1765922564171,1678.87,9.438e-05,2]
[398854169,1765922568615,6280.45782367,9.62e-05,2]
[398854170,1765922568648,10000.01,9.62e-05,2]
[398854171,1765922568683,10000.01,9.62e-05,2]
[398854172,1765922568717,10000.01,9.62e-05,2]
[398854173,1765922568753,10000.01,9.62e-05,2]
[398854174,1765922568786,256747.65186772,9.62e-05,2]
[398854179,1765922582760,1184.72028402,9.64e-05,2]
[398854180,1765922590714,5000.0,9.64e-05,2]
[398854181,1765922614327,5000.0,9.64e-05,2]
[398854204,1765922635075,178.436509,4.373e-05,2]
[398854205,1765922635121,178.436509,8.745e-05,2]
[398854206,1765922637650,5000.0,9.64e-05,2]
[398854207,1765922639137,244.74,7.691e-05,2]
[398854208,1765922639542,489.49,8.057e-05,2]
[398854209,1765922640416,734.23,8.423e-05,2]
[398854210,1765922640935,978.97,8.789e-05,2]
[398854211,1765922641368,1223.72,9.155e-05,2]
[398854212,1765922641764,1468.46,9.522e-05,2]
[398854220,1765922717680,179.33,7.694e-05,2]
[398854221,1765922718075,358.66,8.06e-05,2]
[398854222,1765922718727,537.99,8.427e-05,2]
[398854223,1765922718896,717.32,8.793e-05,2]
[398854224,1765922719308,896.65,9.159e-05,2]
[398854225,1765922719722,1075.98,9.526e-05,2]
[398854233,1765922774457,5893.5715425,8.746e-05,2]
[398854234,1765922796260,150.0,7.541e-05,2]
[398854235,1765922796673,262.8,7.9e-05,2]
[398854236,1765922797066,394.2,8.259e-05,2]
[398854237,1765922797486,525.6,8.618e-05,2]
[398854238,1765922804387,657.0,8.977e-05,2]
[398854239,1765922804800,788.4,9.336e-05,2]
[398854247,1765922882057,150.0,7.686e-05,2]
[398854249,1765922882482,192.09,8.052e-05,2]
[398854250,1765922882882,288.13,8.418e-05,2]
[398854251,1765922883278,384.18,8.784e-05,2]
[398854252,1765922883690,480.22,9.15e-05,2]
[398854253,1765922884103,576.26,9.516e-05,2]
[398854254,1765922885535,395.43,8.238e-05,2]
[398854255,1765922886088,395.43,8.238e-05,2]
[398854260,1765922959276,150.0,7.541e-05,2]
[398854261,1765922959489,150.0,7.9e-05,2]
[398854262,1765922960005,209.06,8.259e-05,2]
[398854263,1765922960316,278.75,8.618e-05,2]
[398854264,1765922960723,348.44,8.978e-05,2]
[398854265,1765922961140,418.12,9.337e-05,2]
[398854271,1765923008650,166.82338259,9.64e-05,2]
[398854299,1765923031619,-302.16620623,9.698e-05,2]
[398854300,1765923031628,-561.62781408,9.719e-05,2]
[398854301,1765923031638,-300.0,9.753e-05,2]
[398854302,1765923031648,-345.21702954,9.754e-05,2]
[398854303,1765923031657,-203.68617189,9.754e-05,2]
[398854304,1765923031669,-409.65316864,9.754e-05,2]
[398854305,1765923031679,-500.0,9.754e-05,2]
[398854306,1765923031688,-128.87305381,9.754e-05,2]
[398854307,1765923031703,-371.12694619,9.754e-05,2]
[398854308,1765923031712,-425.71770423,9.754e-05,2]
[398854310,1765923031722,-1048.1918493,9.755e-05,2]
[398854312,1765923031732,-15528.4833616,9.755e-05,2]
[398854314,1765923031741,-1137.115808,9.755e-05,2]
[398854316,1765923031751,-11741.31763,9.755e-05,2]
[398854318,1765923031761,-7337.11795774,9.902e-05,2]
[398854319,1765923035652,150.0,7.55e-05,2]
[398854320,1765923036075,150.0,7.91e-05,2]
[398854321,1765923036483,150.0,8.27e-05,2]
[398854322,1765923036908,199.62,8.629e-05,2]
[398854324,1765923037332,249.52,8.989e-05,2]
[398854343,1765923037709,-1162.19038936,9.902e-05,2]
[398854345,1765923037719,-1890.77995008,9.984e-05,2]
[398854347,1765923037728,-236.06385206,0.0001,2]
[398854349,1765923037738,-151.1,0.0001,2]
[398854351,1765923037748,-3983.89055193,0.00010051,2]
[398854353,1765923037757,-151.1,0.000101,2]
[398854355,1765923037767,-300.0,0.00010219,2]
[398854357,1765923037776,-300.0,0.00010219,2]
[398854359,1765923037786,-300.0,0.00010219,2]
[398854361,1765923037795,-300.0,0.00010219,2]
[398854363,1765923037804,-300.0,0.00010219,2]
[398854365,1765923037813,-300.0,0.00010219,2]
[398854367,1765923037822,-300.0,0.00010219,2]
[398854369,1765923037831,-300.0,0.00010219,2]
[398854371,1765923037840,-300.0,0.00010219,2]
[398854373,1765923037850,-300.0,0.00010219,2]
[398854375,1765923037859,-300.0,0.00010219,2]
[398854377,1765923037868,-300.0,0.00010219,2]
[398854379,1765923037878,-300.0,0.00010219,2]
[398854381,1765923037887,-300.0,0.00010219,2]
[398854383,1765923037896,-300.0,0.00010219,2]
[398854385,1765923037905,-600.0,0.00010219,2]
[398854387,1765923037915,-1890.77995009,0.00010272,2]
[398854389,1765923037925,-150.0,0.00010274,2]
[398854391,1765923037934,-150.0,0.00010274,2]
[398854393,1765923037943,-500.0,0.00010274,2]
[398854395,1765923037952,-150.0,0.00010274,2]
[398854397,1765923037960,-500.0,0.00010274,2]
[398854399,1765923037969,-40.04895977,0.00010274,2]
[398854402,1765923037980,-109.95104023,0.00010274,2]
[398854404,1765923037989,-160.13180362,0.00010274,2]
[398854406,1765923037998,-150.0,0.00010274,2]
[398854407,1765923038007,-151.1,0.000103,2]
[398854409,1765923038016,-151.1,0.000104,2]
[398854411,1765923038025,-7.13259657,0.00010411,2]
[398854433,1765923038220,299.43,9.348e-05,2]
[398854572,1765923039932,-349.33,9.708e-05,2]
[398854574,1765923039942,-217.73595745,0.00010067,2]
[398854580,1765923039989,-181.50404255,0.00010067,2]
[398854582,1765923039998,-142.86740343,0.00010411,2]
[398854584,1765923040008,-150.0,0.00010411,2]
[398854586,1765923040018,-500.0,0.00010411,2]
[398854588,1765923040026,-150.0,0.00010411,2]
[398854590,1765923040035,-500.0,0.00010411,2]
[398854592,1765923040045,-150.0,0.00010411,2]
[398854594,1765923040054,-150.0,0.00010411,2]
[398854596,1765923040063,-150.0,0.00010411,2]
[398854598,1765923040075,-449.14,0.00010427,2]
[398854600,1765923040085,-151.1,0.000105,2]
[398854602,1765923040094,-150.0,0.00010548,2]
[398854604,1765923040104,-150.0,0.00010548,2]
[398854606,1765923040113,-150.0,0.00010548,2]
[398854608,1765923040122,-298.97403973,0.00010548,2]
[398854610,1765923040131,-453.0,0.00010548,2]
[398854612,1765923040141,-200.0,0.00010548,2]
[398854614,1765923040150,-250.0,0.00010548,2]
[398854616,1765923040159,-153.76914731,0.00010548,2]
[398854618,1765923040168,-250.0,0.00010647,2]
[398854620,1765923040178,-150.0,0.00010685,2]
[398854623,1765923040187,-150.0,0.00010685,2]
[398854626,1765923040196,-151.1,0.000107,2]
[398854629,1765923040206,-420.0,0.00010728,2]
[398854632,1765923040215,-151.1,0.000108,2]
[398854635,1765923040225,-250.0,0.00010822,2]
[398854638,1765923040234,-150.0,0.00010822,2]
[398854641,1765923040243,-233.8,0.00010859,2]
[398854644,1765923040252,-233.8,0.00010859,2]
[398854647,1765923040262,-233.8,0.00010859,2]
[398854650,1765923040271,-233.8,0.00010859,2]
[398854653,1765923040280,-233.8,0.00010859,2]
[398854656,1765923040289,-233.8,0.00010859,2]
[398854659,1765923040299,-233.8,0.00010859,2]
[398854662,1765923040308,-180.57866378,0.00010859,2]
[398854665,1765923040319,-28.13133622,0.00010859,2]
[398854668,1765923040329,-500.0,0.00010958,2]
[398854671,1765923040339,-1000.0,0.00010958,2]
[398854673,1765923040348,-1000.0,0.00010958,2]
[398854675,1765923040358,-1000.0,0.00010958,2]
[398854678,1765923040368,-134.49452262,0.00010958,2]
[398855096,1765923045822,-499.04,0.00010786,2]
[398855097,1765923045832,-865.50547738,0.00010958,2]
[398855098,1765923045841,-999.0,0.00010959,2]
[398855099,1765923045850,-208.72560053,0.00010959,2]
[398855100,1765923045860,-500.0,0.00010959,2]
[398855101,1765923045870,-154.92682818,0.00010959,2]
[398855102,1765923045879,-500.0,0.00010959,2]
[398855103,1765923045889,-500.0,0.00010959,2]
[398855104,1765923045898,-391.39921841,0.00010959,2]
[398855105,1765923045910,-108.60078159,0.00010959,2]
[398855106,1765923045919,-491.39921841,0.00010959,2]
[398855115,1765923047076,-8.60078159,0.00010959,2]
[398855116,1765923047086,-500.0,0.00010959,2]
[398855117,1765923047095,-500.0,0.00010959,2]
[398855118,1765923047104,-647.31833449,0.00010959,2]
[398855119,1765923047114,-835.8264,0.00010959,2]
[398855120,1765923047123,-166.49,0.00010984,2]
[398855121,1765923047132,-151.0,0.00011,2]
[398855122,1765923047141,-151.1,0.00011,2]
[398855123,1765923047152,-11741.31763,0.00011062,2]
[398855124,1765923047162,-151.0,0.00011067,2]
[398855125,1765923047171,-151.0,0.00011067,2]
[398855126,1765923047180,-1137.115808,0.00011067,2]
[398855127,1765923047190,-15528.4833616,0.00011067,2]
[398855128,1765923047200,-1048.1918493,0.00011094,2]
[398855129,1765923047209,-151.1,0.000111,2]
[398855130,1765923047218,-1497.86290088,0.00011152,2]
[398855131,1765923047468,-225.58038187,0.00011178,2]
[398855132,1765923047478,-151.1,0.000112,2]
[398855133,1765923047487,-370.71248065,0.00011203,2]
[398855134,1765923047496,-359.07067585,0.00011205,2]
[398855135,1765923047506,-8499.3083471,0.00011222,2]
[398855136,1765923047515,-3430.51462706,0.00011238,2]
[398855137,1765923047524,-720.0,0.00011241,2]
[398855138,1765923047533,-151.0,0.000113,2]
[398855139,1765923047542,-1497.86290088,0.00011382,2]
[398855140,1765923047551,-151.0,0.000114,2]
[398855142,1765923047560,-151.1,0.000114,2]
[398855143,1765923047569,-423.67140645,0.00011489,2]
[398855144,1765923047579,-410.36648669,0.00011492,2]
[398855146,1765923047588,-225.58038187,0.00011495,2]
[398855147,1765923047597,-151.1,0.000115,2]
[398855148,1765923047606,-689.76223249,0.00011506,2]
[398855149,1765923047615,-341.09957529,0.00011519,3]
[398855150,1765923047625,-151.0,0.000116,2]
[398855151,1765923047634,-151.1,0.000116,2]
[398855153,1765923047643,-1497.86290088,0.00011611,2]
[398855154,1765923047652,-356.55612335,0.00011698,2]
[398855156,1765923047661,-1361.0,0.00011768,2]
[398855158,1765923047670,-901.24403592,0.00011768,2]
[398855159,1765923047681,-1255.75596408,0.00011768,2]
[398855160,1765923047690,-632.0,0.00011768,2]
[398855161,1765923047699,-151.0,0.000118,2]
[398855162,1765923047709,-151.1,0.000118,2]
[398855163,1765923047718,-587.0,0.00011801,2]
[398855164,1765923047728,-1241.57201849,0.0001181,2]
[398855165,1765923047737,-225.58038187,0.00011812,2]
[398855166,1765923047747,-1497.86290088,0.00011841,2]
[398855167,1765923047757,-1000.0,0.00011858,2]
[398855168,1765923047766,-1000.0,0.00011858,2]
[398855169,1765923047776,-1000.0,0.00011858,2]
[398855170,1765923047785,-38.82873468,0.00011858,2]
[398855178,1765923110008,150.0,7.56e-05,2]
[398855179,1765923110412,150.0,7.92e-05,2]
[398855180,1765923110878,150.0,8.28e-05,2]
[398855181,1765923111292,150.0,8.64e-05,2]
[398855182,1765923111698,150.0,9e-05,2]
[398855183,1765923112098,150.0,9.36e-05,2]
[398855316,1765923669776,169.524993,0.00010212,120]
[398855468,1765924014307,-293.1715777,9.939e-05,2]
[398855469,1765924014330,-60.65266215,9.939e-05,2]
[398855678,1765924231800,-353.8242399,9.717e-05,2]
[398855679,1765924231810,-300.0,9.814e-05,2]
[398855680,1765924231819,-300.0,9.814e-05,2]
[398855681,1765924231828,-175.0,9.814e-05,2]
[398855682,1765924231838,-1120.0,9.814e-05,2]
[398855683,1765924231847,-545.3273561,9.815e-05,2]
[398855684,1765924231858,-981.58924099,9.815e-05,2]
[398855685,1765924231867,-1745.04753953,9.815e-05,2]
[398855686,1765924231876,-158.17335284,9.919e-05,2]
[398855687,1765924231885,-284.71203511,9.919e-05,2]
[398855689,1765924231894,-40.99496365,9.919e-05,2]
[398855691,1765924231905,-465.15976544,9.919e-05,2]
[398855693,1765924231914,-151.1,0.0001,2]
[398855695,1765924231923,-169.03045775,0.00010015,2]
[398855696,1765924231934,-1153.36083785,0.00010015,2]
[398855697,1765924231944,-270.29094319,0.00010076,2]
[398855698,1765924231955,-17.01720296,0.00010076,2]
[398855699,1765924231966,-169.524993,0.00010212,2]
[398855700,1765924231975,-151.1,0.000103,2]
[398855701,1765924231984,-214.06288164,0.00010332,2]
[398855702,1765924231993,-286.1079883,0.00010332,2]
[398855703,1765924232002,-326.98055806,0.00010332,2]
[398855704,1765924232011,-386.33690473,0.00010396,2]
[398855705,1765924232020,-151.1,0.000105,2]
[398855706,1765924232030,-300.0,0.00010538,2]
[398855707,1765924232048,-300.0,0.00010538,2]
[398855708,1765924232058,-300.0,0.00010538,2]
[398855709,1765924232067,-300.0,0.00010538,2]
[398855710,1765924232076,-300.0,0.00010538,2]
[398855711,1765924232085,-300.0,0.00010538,2]
[398855712,1765924232094,-300.0,0.00010538,2]
[398855713,1765924232103,-300.0,0.00010538,2]
[398855714,1765924232112,-300.0,0.00010538,2]
[398855715,1765924232121,-300.0,0.00010538,2]
[398855716,1765924232131,-300.0,0.00010538,2]
[398855717,1765924232140,-300.0,0.00010538,2]
[398855718,1765924232149,-300.0,0.00010538,2]
[398855719,1765924232158,-300.0,0.00010538,2]
[398855720,1765924232168,-300.0,0.00010538,2]
[398855721,1765924232177,-247.78479326,0.00010542,2]
[398855722,1765924232186,-600.0,0.00010748,2]
[398855723,1765924232195,-420.0,0.00010796,2]
[398855724,1765924232205,-151.1,0.000108,2]
[398855725,1765924232214,-321.42942355,0.00010959,2]
[398855726,1765924232224,-367.34791263,0.00010959,2]
[398855727,1765924232233,-2207.23914398,0.00010959,2]
[398855728,1765924232243,-151.1,0.00011,2]
[398855729,1765924232254,-281.0,0.000111,2]
[398855730,1765924232263,-500.0,0.00011257,2]
[398855731,1765924232272,-410.09425286,0.00011257,2]
[398855732,1765924232281,-500.0,0.00011257,2]
[398855733,1765924232290,-500.0,0.00011257,2]
[398855734,1765924232299,-1000.0,0.00011258,2]
[398855735,1765924232308,-805.45956924,0.00011258,2]
[398855736,1765924232321,-514.84070869,0.00011258,2]
[398855737,1765924232330,-250.0,0.00011258,2]
[398855738,1765924232340,-250.0,0.00011258,2]
[398855739,1765924232349,-250.0,0.00011258,2]
[398855740,1765924232358,-250.0,0.00011258,2]
[398855741,1765924232367,-250.0,0.00011258,2]
[398855742,1765924232376,-250.0,0.00011258,2]
[398855743,1765924232385,-250.0,0.00011258,2]
[398855744,1765924232394,-250.0,0.00011258,2]
[398855745,1765924232403,-250.0,0.00011258,2]
[398855746,1765924232412,-250.0,0.00011258,2]
[398855747,1765924232421,-250.0,0.00011258,2]
[398855748,1765924232431,-244.16847174,0.00011258,2]
[398855749,1765924232440,-250.0,0.00011258,2]
[398855750,1765924232450,-250.0,0.00011258,2]
[398855751,1765924232459,-250.0,0.00011258,2]
[398855752,1765924232469,-250.0,0.00011258,2]
[398855753,1765924232478,-254.0329969,0.00011258,2]
[398855754,1765924232488,-250.0,0.00011258,2]
[398855755,1765924232497,-250.0,0.00011258,2]
[398855756,1765924232507,-160.0,0.00011258,2]
[398855757,1765924232516,-250.0,0.00011258,2]
[398855758,1765924232526,-160.0,0.00011258,2]
[398855759,1765924232535,-250.0,0.00011258,2]
[398855760,1765924232545,-160.0,0.00011258,2]
[398855761,1765924232555,-250.0,0.00011258,2]
[398855762,1765924232564,-160.0,0.00011258,2]
[398855763,1765924232573,-250.0,0.00011258,2]
[398855764,1765924232583,-160.0,0.00011258,2]
[398855765,1765924232592,-160.0,0.00011258,2]
[398855766,1765924232602,-184.29405669,0.00011258,2]
[398855767,1765924232611,-1096.3005907,0.00011265,2]
[398855768,1765924232622,-524.0959246,0.00011265,2]
[398855769,1765924232632,-12013.8958544,0.00011265,2]
[398855770,1765924232641,-6439.216719,0.00011265,2]
[398855771,1765924232652,-151.1,0.000113,2]
[398855772,1765924232661,-417.955,0.000113,2]
[398855773,1765924232671,-225.91858335,0.0001143,2]
[398855774,1765924232681,-1284.76885013,0.0001143,2]
[398855775,1765924232691,-214.17427767,0.00011479,2]
[398855776,1765924232701,-171.68931714,0.00011483,2]
[398855777,1765924232710,-151.1,0.000115,2]
[398855778,1765924232719,-325.56810492,0.00011519,3]
[398855779,1765924232729,-315.34400802,0.00011519,3]
[398855780,1765924232738,-1363.03390284,0.00011519,3]
[398855781,1765924232747,-1284.76885013,0.00011743,2]
[398855782,1765924232756,-285.2,0.000118,2]
[398855783,1765924232765,-151.1,0.000118,2]
[398855784,1765924232775,-533.88981491,0.00011806,2]
[398855785,1765924232784,-720.0,0.00011823,2]
[398855786,1765924232793,-157.37590138,0.00011858,2]
[398855787,1765924232803,-186.372,0.00011858,2]
[398855788,1765924232812,-587.0,0.00011875,2]
[398855789,1765924232821,-150.0,0.00011956,2]
[398855790,1765924232830,-150.115,0.00011956,2]
[398855791,1765924232839,-150.0,0.00011956,2]
[398855792,1765924232849,-281.503,0.00011956,2]
[398855793,1765924232858,-210.99398934,0.00011968,2]
[398855794,1765924232867,-632.0,0.0001199,2]
[398855795,1765924232876,-1361.0,0.0001199,2]
[398855796,1765924232885,-2157.0,0.0001199,2]
[398855797,1765924232894,-415.0,0.0001199,2]
[398855798,1765924232903,-1284.76885013,0.00012056,2]
[398855799,1765924232912,-339.02361245,0.00012076,2]
[398855800,1765924232921,-151.1,0.000121,2]
[398855801,1765924232931,-281.78861405,0.00012132,3]
[398855802,1765924232940,-151.931589,0.0001215,2]
[398855803,1765924232950,-1061.37152,0.0001215,2]